[Event "Titled Tuesday Blitz November 01 Early 2022"]
[White "Najdin, Danil"]
[Black "Fier, Alexandr"]
[WhiteFideId "4172426"]
[BlackFideId "2107139"]
[WhiteElo "2240"]
[BlackElo "2607"]
[Result "0-1"]
[Round "02"]
[TimeControl "180+1"]
[Date "2022.11.02"]
[WhiteClock "0:01:37"]
[BlackClock "0:02:41"]

1. e4 {[%clk 0:03:00]}  e6 {[%clk 0:02:55]} 2. d4 {[%clk 0:03:00]}  d5 {[%clk 0:02:52]} 3. Nd2 {[%clk 0:03:00]}  Nf6 {[%clk 0:02:50]} 4. e5 {[%clk 0:03:00]}  Nfd7 {[%clk 0:02:51]} 5. Bd3 {[%clk 0:03:01]}  c5 {[%clk 0:02:51]} 6. c3 {[%clk 0:03:02]}  Nc6 {[%clk 0:02:52]} 7. Ne2 {[%clk 0:03:02]}  f6 {[%clk 0:02:51]} 8. Nf4 {[%clk 0:03:00]}  Qe7 {[%clk 0:02:50]} 9. Qh5+ {[%clk 0:02:59]}  Qf7 {[%clk 0:02:47]} 10. Ng6 {[%clk 0:01:56]}  fxe5 {[%clk 0:02:42]} 11. Qh3 {[%clk 0:01:48]}  hxg6 {[%clk 0:02:41]} 12. Qxh8 {[%clk 0:01:48]}  e4 {[%clk 0:02:41]} 13. Bb5 {[%clk 0:01:44]}  cxd4 {[%clk 0:02:42]} 14. Bxc6 {[%clk 0:01:44]}  bxc6 {[%clk 0:02:43]} 15. cxd4 {[%clk 0:01:44]}  Ba6 {[%clk 0:02:43]} 16. Nb3 {[%clk 0:01:38]}  O-O-O {[%clk 0:02:41]} 17. Bg5 {[%clk 0:01:37]}  Bb4+ {[%clk 0:02:41]} 0-1


[Site "https://www.chess.com"]

[Event "Titled Tuesday Blitz November 01 Early 2022"]
[White "Nakamura, Hikaru"]
[Black "Korchmar, Vasiliy"]
[WhiteFideId "2016192"]
[BlackFideId "24131750"]
[WhiteElo "2909"]
[BlackElo "2370"]
[Result "1-0"]
[Round "02"]
[TimeControl "180+1"]
[Date "2022.11.01"]
[WhiteClock "0:01:15"]
[BlackClock "0:00:06"]

1. g3 {[%clk 0:03:00]}  d5 {[%clk 0:03:00]} 2. Bg2 {[%clk 0:03:00]}  g6 {[%clk 0:03:00]} 3. d4 {[%clk 0:02:52]}  Nf6 {[%clk 0:02:59]} 4. Nf3 {[%clk 0:02:50]}  Bg7 {[%clk 0:02:58]} 5. O-O {[%clk 0:02:51]}  O-O {[%clk 0:02:59]} 6. c4 {[%clk 0:02:51]}  c6 {[%clk 0:02:59]} 7. Qb3 {[%clk 0:02:51]}  a5 {[%clk 0:02:58]} 8. cxd5 {[%clk 0:02:50]}  a4 {[%clk 0:02:56]} 9. Qd1 {[%clk 0:02:49]}  cxd5 {[%clk 0:02:55]} 10. Nc3 {[%clk 0:02:49]}  Ne4 {[%clk 0:02:33]} 11. Nxa4 {[%clk 0:02:36]}  Qa5 {[%clk 0:02:27]} 12. b3 {[%clk 0:02:34]}  Bd7 {[%clk 0:02:19]} 13. Nb2 {[%clk 0:02:32]}  Nc6 {[%clk 0:01:51]} 14. e3 {[%clk 0:02:15]}  e5 {[%clk 0:01:42]} 15. dxe5 {[%clk 0:01:58]}  Nxe5 {[%clk 0:01:43]} 16. Nxe5 {[%clk 0:01:54]}  Bxe5 {[%clk 0:01:44]} 17. Bxe4 {[%clk 0:01:51]}  Bb5 {[%clk 0:01:05]} 18. Bd3 {[%clk 0:01:47]}  Bc6 {[%clk 0:01:05]} 19. a3 {[%clk 0:01:40]}  b5 {[%clk 0:00:37]} 20. b4 {[%clk 0:01:39]}  Qc7 {[%clk 0:00:37]} 21. Ra2 {[%clk 0:01:32]}  h5 {[%clk 0:00:34]} 22. Bb1 {[%clk 0:01:31]}  h4 {[%clk 0:00:32]} 23. Nd3 {[%clk 0:01:31]}  hxg3 {[%clk 0:00:22]} 24. Nxe5 {[%clk 0:01:19]}  gxh2+ {[%clk 0:00:20]} 25. Kh1 {[%clk 0:01:19]}  Qxe5 {[%clk 0:00:21]} 26. Qd4 {[%clk 0:01:17]}  Qh5 {[%clk 0:00:17]} 27. f4 {[%clk 0:01:16]}  Qh3 {[%clk 0:00:08]} 28. Rg2 {[%clk 0:01:15]}  Rfe8 {[%clk 0:00:06]} 29. Bb2 {[%clk 0:01:15]} 1-0


[Site "https://www.chess.com"]

[Event "Titled Tuesday Blitz November 01 Early 2022"]
[White "Narayanan, Srinath"]
[Black "Gu, Xiaobing"]
[WhiteFideId "5018420"]
[BlackFideId "8602611"]
[WhiteElo "2459"]
[BlackElo "2174"]
[Result "1-0"]
[Round "02"]
[TimeControl "180+1"]
[Date "2022.11.02"]
[WhiteClock "0:00:15"]
[BlackClock "0:00:18"]

1. d4 {[%clk 0:03:00]}  Nf6 {[%clk 0:02:59]} 2. Bf4 {[%clk 0:03:00]}  g6 {[%clk 0:02:55]} 3. e3 {[%clk 0:02:57]}  Bg7 {[%clk 0:02:55]} 4. Nd2 {[%clk 0:02:58]}  d6 {[%clk 0:02:55]} 5. h3 {[%clk 0:02:57]}  c5 {[%clk 0:02:51]} 6. c3 {[%clk 0:02:56]}  O-O {[%clk 0:02:47]} 7. Ngf3 {[%clk 0:02:55]}  b6 {[%clk 0:02:47]} 8. Bh2 {[%clk 0:02:54]}  Ba6 {[%clk 0:02:46]} 9. Bxa6 {[%clk 0:02:52]}  Nxa6 {[%clk 0:02:46]} 10. O-O {[%clk 0:02:52]}  Nc7 {[%clk 0:02:43]} 11. e4 {[%clk 0:02:50]}  Qd7 {[%clk 0:02:10]} 12. Qe2 {[%clk 0:02:45]}  Rfe8 {[%clk 0:01:44]} 13. Rfd1 {[%clk 0:02:41]}  Qb5 {[%clk 0:01:41]} 14. Qxb5 {[%clk 0:02:18]}  Nxb5 {[%clk 0:01:40]} 15. a4 {[%clk 0:02:19]}  Nc7 {[%clk 0:01:39]} 16. e5 {[%clk 0:02:20]}  dxe5 {[%clk 0:01:36]} 17. Bxe5 {[%clk 0:02:16]}  Ncd5 {[%clk 0:01:34]} 18. dxc5 {[%clk 0:02:10]}  bxc5 {[%clk 0:01:32]} 19. Nc4 {[%clk 0:02:10]}  e6 {[%clk 0:01:27]} 20. a5 {[%clk 0:02:07]}  Nd7 {[%clk 0:01:26]} 21. Bg3 {[%clk 0:01:49]}  N7f6 {[%clk 0:01:08]} 22. Rd3 {[%clk 0:01:44]}  Ne4 {[%clk 0:01:07]} 23. Bh2 {[%clk 0:01:43]}  Rad8 {[%clk 0:01:00]} 24. Re1 {[%clk 0:01:38]}  Ndf6 {[%clk 0:00:54]} 25. Rxd8 {[%clk 0:01:27]}  Rxd8 {[%clk 0:00:52]} 26. Be5 {[%clk 0:01:28]}  h6 {[%clk 0:00:46]} 27. Kf1 {[%clk 0:01:17]}  Kf8 {[%clk 0:00:43]} 28. a6 {[%clk 0:01:04]}  Ng5 {[%clk 0:00:42]} 29. Nxg5 {[%clk 0:00:52]}  hxg5 {[%clk 0:00:42]} 30. Bd6+ {[%clk 0:00:53]}  Kg8 {[%clk 0:00:39]} 31. Bxc5 {[%clk 0:00:51]}  Rc8 {[%clk 0:00:39]} 32. b4 {[%clk 0:00:51]}  Nd7 {[%clk 0:00:39]} 33. Nd6 {[%clk 0:00:51]}  Rc6 {[%clk 0:00:36]} 34. Ne4 {[%clk 0:00:23]}  Rxa6 {[%clk 0:00:35]} 35. Rd1 {[%clk 0:00:24]}  Nxc5 {[%clk 0:00:34]} 36. Nxc5 {[%clk 0:00:25]}  Ra2 {[%clk 0:00:31]} 37. Ne4 {[%clk 0:00:22]}  f5 {[%clk 0:00:30]} 38. Nxg5 {[%clk 0:00:20]}  Bxc3 {[%clk 0:00:31]} 39. Rd8+ {[%clk 0:00:19]}  Kg7 {[%clk 0:00:29]} 40. Rd7+ {[%clk 0:00:19]}  Kf6 {[%clk 0:00:29]} 41. f4 {[%clk 0:00:18]}  Ra1+ {[%clk 0:00:19]} 42. Ke2 {[%clk 0:00:16]}  Ra2+ {[%clk 0:00:19]} 43. Kf3 {[%clk 0:00:16]}  e5 {[%clk 0:00:18]} 44. Rf7# {[%clk 0:00:15]} 1-0


[Site "https://www.chess.com"]

[Event "Titled Tuesday Blitz November 01 Early 2022"]
[White "Nasuta, Grzegorz"]
[Black "Martinez Alcantara, Jose Eduardo"]
[WhiteFideId "1141686"]
[BlackFideId "3805662"]
[WhiteElo "2442"]
[BlackElo "2703"]
[Result "0-1"]
[Round "02"]
[TimeControl "180+1"]
[Date "2022.11.01"]
[WhiteClock "0:00:01"]
[BlackClock "0:00:08"]

1. e4 {[%clk 0:03:00]}  c5 {[%clk 0:03:00]} 2. Nf3 {[%clk 0:03:00]}  d6 {[%clk 0:03:00]} 3. Bb5+ {[%clk 0:02:54]}  Bd7 {[%clk 0:03:00]} 4. Bxd7+ {[%clk 0:02:53]}  Nxd7 {[%clk 0:03:01]} 5. O-O {[%clk 0:02:53]}  Ngf6 {[%clk 0:03:01]} 6. Qe2 {[%clk 0:02:52]}  e6 {[%clk 0:02:59]} 7. d4 {[%clk 0:02:50]}  cxd4 {[%clk 0:02:58]} 8. Nxd4 {[%clk 0:02:51]}  Be7 {[%clk 0:02:59]} 9. c4 {[%clk 0:02:51]}  O-O {[%clk 0:02:59]} 10. Nc3 {[%clk 0:02:45]}  a6 {[%clk 0:03:00]} 11. b3 {[%clk 0:02:45]}  Re8 {[%clk 0:02:59]} 12. Bb2 {[%clk 0:02:45]}  Rc8 {[%clk 0:02:59]} 13. Rad1 {[%clk 0:02:45]}  Qa5 {[%clk 0:02:59]} 14. Kh1 {[%clk 0:02:41]}  Bf8 {[%clk 0:02:50]} 15. f4 {[%clk 0:02:38]}  Qh5 {[%clk 0:02:40]} 16. Qxh5 {[%clk 0:02:34]}  Nxh5 {[%clk 0:02:41]} 17. g3 {[%clk 0:02:34]}  Nhf6 {[%clk 0:02:40]} 18. Kg2 {[%clk 0:02:34]}  Nc5 {[%clk 0:02:36]} 19. Rfe1 {[%clk 0:02:21]}  Rc7 {[%clk 0:02:21]} 20. Kf3 {[%clk 0:02:10]}  h5 {[%clk 0:02:16]} 21. h3 {[%clk 0:02:10]}  Ncd7 {[%clk 0:02:13]} 22. Rd2 {[%clk 0:02:06]}  Rec8 {[%clk 0:02:11]} 23. Nde2 {[%clk 0:01:57]}  Be7 {[%clk 0:01:54]} 24. Red1 {[%clk 0:01:54]}  Nf8 {[%clk 0:01:52]} 25. Ba3 {[%clk 0:01:33]}  Ne8 {[%clk 0:01:36]} 26. Rd3 {[%clk 0:01:21]}  Ng6 {[%clk 0:01:34]} 27. g4 {[%clk 0:01:05]}  hxg4+ {[%clk 0:01:34]} 28. hxg4 {[%clk 0:01:05]}  Rb8 {[%clk 0:01:25]} 29. Bb4 {[%clk 0:00:50]}  b6 {[%clk 0:01:02]} 30. Kg3 {[%clk 0:00:48]}  Bh4+ {[%clk 0:00:59]} 31. Kf3 {[%clk 0:00:47]}  Be7 {[%clk 0:01:00]} 32. g5 {[%clk 0:00:45]}  Rbc8 {[%clk 0:00:46]} 33. Kg3 {[%clk 0:00:38]}  Rb7 {[%clk 0:00:43]} 34. Kg4 {[%clk 0:00:26]}  Rbc7 {[%clk 0:00:33]} 35. Rh3 {[%clk 0:00:24]}  f6 {[%clk 0:00:27]} 36. gxf6 {[%clk 0:00:11]}  Nxf6+ {[%clk 0:00:27]} 37. Kf3 {[%clk 0:00:12]}  Ne8 {[%clk 0:00:13]} 38. Rg1 {[%clk 0:00:09]}  Kf7 {[%clk 0:00:14]} 39. Ke3 {[%clk 0:00:09]}  Nf8 {[%clk 0:00:12]} 40. Rhg3 {[%clk 0:00:08]}  Bf6 {[%clk 0:00:10]} 41. f5 {[%clk 0:00:08]}  b5 {[%clk 0:00:10]} 42. fxe6+ {[%clk 0:00:07]}  Nxe6 {[%clk 0:00:11]} 43. Nd5 {[%clk 0:00:08]}  Rb7 {[%clk 0:00:11]} 44. cxb5 {[%clk 0:00:06]}  Rxb5 {[%clk 0:00:11]} 45. Nec3 {[%clk 0:00:05]}  Rxb4 {[%clk 0:00:11]} 46. Nxb4 {[%clk 0:00:02]}  Rxc3+ {[%clk 0:00:10]} 47. Kd2 {[%clk 0:00:03]}  Rc8 {[%clk 0:00:09]} 48. Nd5 {[%clk 0:00:03]}  Be5 {[%clk 0:00:09]} 49. Rf3+ {[%clk 0:00:03]}  Nf6 {[%clk 0:00:09]} 50. Nxf6 {[%clk 0:00:02]}  gxf6 {[%clk 0:00:08]} 51. Kd1 {[%clk 0:00:01]}  Nc5 {[%clk 0:00:08]} 0-1


[Site "https://www.chess.com"]

[Event "Titled Tuesday Blitz November 01 Early 2022"]
[White "Omariev, Maksim"]
[Black "Shuvalova, Polina"]
[WhiteFideId "4193423"]
[BlackFideId "24171760"]
[WhiteElo "2406"]
[BlackElo "2392"]
[Result "0-1"]
[Round "02"]
[TimeControl "180+1"]
[Date "2022.11.02"]
[WhiteClock "0:00:58"]
[BlackClock "0:02:16"]

1. g4 {[%clk 0:02:58]}  d5 {[%clk 0:02:59]} 2. Bg2 {[%clk 0:02:58]}  Nc6 {[%clk 0:02:59]} 3. h3 {[%clk 0:02:54]}  e5 {[%clk 0:02:58]} 4. c3 {[%clk 0:02:53]}  h5 {[%clk 0:02:58]} 5. gxh5 {[%clk 0:02:53]}  Be6 {[%clk 0:02:57]} 6. d4 {[%clk 0:02:53]}  e4 {[%clk 0:02:57]} 7. Bf4 {[%clk 0:02:51]}  Bd6 {[%clk 0:02:56]} 8. Bxd6 {[%clk 0:02:46]}  Qxd6 {[%clk 0:02:57]} 9. e3 {[%clk 0:02:47]}  Nf6 {[%clk 0:02:55]} 10. Nd2 {[%clk 0:02:44]}  O-O-O {[%clk 0:02:54]} 11. Ne2 {[%clk 0:02:43]}  Nxh5 {[%clk 0:02:52]} 12. c4 {[%clk 0:02:41]}  Nb4 {[%clk 0:02:51]} 13. Nc1 {[%clk 0:02:38]}  f5 {[%clk 0:02:46]} 14. Qa4 {[%clk 0:02:23]}  dxc4 {[%clk 0:02:31]} 15. Qxa7 {[%clk 0:02:14]}  Nc2+ {[%clk 0:02:29]} 16. Kd1 {[%clk 0:02:14]}  Nxa1 {[%clk 0:02:29]} 17. Qa6 {[%clk 0:01:04]}  Qxa6 {[%clk 0:02:23]} 18. Nxe4 {[%clk 0:00:57]}  fxe4 {[%clk 0:02:21]} 19. Bxe4 {[%clk 0:00:58]}  Rhf8 {[%clk 0:02:18]} 20. f4 {[%clk 0:00:58]}  Bd5 {[%clk 0:02:16]} 21. Rg1 {[%clk 0:00:57]}  Bxe4 {[%clk 0:02:16]} 22. Rxg7 {[%clk 0:00:58]}  Nxg7 {[%clk 0:02:16]} 0-1


[Site "https://www.chess.com"]

[Event "Titled Tuesday Blitz November 01 Early 2022"]
[White "Oparin, Grigoriy"]
[Black "Chernobay, Artem"]
[WhiteFideId "24125890"]
[BlackFideId "4167406"]
[WhiteElo "2639"]
[BlackElo "2473"]
[Result "1-0"]
[Round "02"]
[TimeControl "180+1"]
[Date "2022.11.01"]
[WhiteClock "0:00:18"]
[BlackClock "0:00:01"]

1. Nf3 {[%clk 0:03:00]}  Nf6 {[%clk 0:02:51]} 2. g3 {[%clk 0:03:01]}  d5 {[%clk 0:02:50]} 3. Bg2 {[%clk 0:03:01]}  c6 {[%clk 0:02:50]} 4. c4 {[%clk 0:03:02]}  dxc4 {[%clk 0:02:43]} 5. Qc2 {[%clk 0:03:02]}  e6 {[%clk 0:02:39]} 6. Qxc4 {[%clk 0:03:01]}  b5 {[%clk 0:02:38]} 7. Qc2 {[%clk 0:03:00]}  Bb7 {[%clk 0:02:37]} 8. O-O {[%clk 0:02:59]}  c5 {[%clk 0:02:33]} 9. a4 {[%clk 0:02:58]}  b4 {[%clk 0:02:31]} 10. d3 {[%clk 0:02:55]}  Be7 {[%clk 0:02:29]} 11. Nbd2 {[%clk 0:02:52]}  O-O {[%clk 0:02:28]} 12. Nc4 {[%clk 0:02:53]}  Nbd7 {[%clk 0:02:20]} 13. a5 {[%clk 0:02:53]}  Rc8 {[%clk 0:02:15]} 14. b3 {[%clk 0:02:51]}  Nd5 {[%clk 0:02:04]} 15. Bb2 {[%clk 0:02:51]}  N7f6 {[%clk 0:02:04]} 16. e4 {[%clk 0:02:41]}  Nc7 {[%clk 0:02:03]} 17. Rfd1 {[%clk 0:02:35]}  Nb5 {[%clk 0:02:01]} 18. a6 {[%clk 0:02:26]}  Ba8 {[%clk 0:02:00]} 19. Na5 {[%clk 0:02:20]}  Qb6 {[%clk 0:01:55]} 20. Nc4 {[%clk 0:02:17]}  Qc6 {[%clk 0:01:45]} 21. Nfe5 {[%clk 0:02:13]}  Qc7 {[%clk 0:01:44]} 22. f4 {[%clk 0:02:13]}  Rfd8 {[%clk 0:01:41]} 23. Qf2 {[%clk 0:02:10]}  Nd4 {[%clk 0:01:28]} 24. Bxd4 {[%clk 0:02:00]}  Rxd4 {[%clk 0:01:29]} 25. g4 {[%clk 0:01:55]}  Rcd8 {[%clk 0:01:14]} 26. g5 {[%clk 0:01:55]}  Nxe4 {[%clk 0:01:04]} 27. Qe3 {[%clk 0:01:36]}  Nc3 {[%clk 0:01:02]} 28. Rf1 {[%clk 0:01:30]}  Bxg2 {[%clk 0:00:56]} 29. Kxg2 {[%clk 0:01:30]}  Nd5 {[%clk 0:00:44]} 30. Qg3 {[%clk 0:01:30]}  Bf8 {[%clk 0:00:32]} 31. Rf3 {[%clk 0:01:28]}  Ne7 {[%clk 0:00:32]} 32. Qf2 {[%clk 0:01:18]}  Nf5 {[%clk 0:00:30]} 33. h4 {[%clk 0:01:18]}  f6 {[%clk 0:00:28]} 34. gxf6 {[%clk 0:01:09]}  gxf6 {[%clk 0:00:28]} 35. Ng4 {[%clk 0:01:10]}  Kh8 {[%clk 0:00:20]} 36. Kh3 {[%clk 0:00:57]}  Rxd3 {[%clk 0:00:19]} 37. Qe2 {[%clk 0:00:52]}  Rxf3+ {[%clk 0:00:14]} 38. Qxf3 {[%clk 0:00:53]}  Rd4 {[%clk 0:00:12]} 39. Rf1 {[%clk 0:00:51]}  Qd8 {[%clk 0:00:10]} 40. Qb7 {[%clk 0:00:37]}  Rd3+ {[%clk 0:00:10]} 41. Rf3 {[%clk 0:00:38]}  Rxf3+ {[%clk 0:00:08]} 42. Qxf3 {[%clk 0:00:39]}  Qd4 {[%clk 0:00:06]} 43. h5 {[%clk 0:00:35]}  Qg1 {[%clk 0:00:05]} 44. Nxf6 {[%clk 0:00:30]}  Kg7 {[%clk 0:00:04]} 45. Ne4 {[%clk 0:00:25]}  Kh6 {[%clk 0:00:03]} 46. Ne5 {[%clk 0:00:25]}  Be7 {[%clk 0:00:03]} 47. Nc6 {[%clk 0:00:18]}  Bf8 {[%clk 0:00:01]} 48. Ne5 {[%clk 0:00:18]} 1-0


[Site "https://www.chess.com"]

[Event "Titled Tuesday Blitz November 01 Early 2022"]
[White "Ozdemir, Serhan Berat"]
[Black "Bryakin, Mikhail"]
[WhiteFideId "6374611"]
[BlackFideId "4165314"]
[WhiteElo "2016"]
[BlackElo "2367"]
[Result "0-1"]
[Round "02"]
[TimeControl "180+1"]
[Date "2022.11.02"]
[WhiteClock "0:00:03"]
[BlackClock "0:01:55"]

1. e4 {[%clk 0:02:59]}  c5 {[%clk 0:02:54]} 2. Nf3 {[%clk 0:02:59]}  d6 {[%clk 0:02:54]} 3. d4 {[%clk 0:03:00]}  cxd4 {[%clk 0:02:54]} 4. Nxd4 {[%clk 0:03:01]}  Nf6 {[%clk 0:02:54]} 5. Nc3 {[%clk 0:03:01]}  Nc6 {[%clk 0:02:55]} 6. Bg5 {[%clk 0:03:01]}  e6 {[%clk 0:02:54]} 7. Qd2 {[%clk 0:03:02]}  Be7 {[%clk 0:02:54]} 8. O-O-O {[%clk 0:02:18]}  a6 {[%clk 0:02:53]} 9. Nxc6 {[%clk 0:02:12]}  bxc6 {[%clk 0:02:54]} 10. f4 {[%clk 0:02:13]}  d5 {[%clk 0:02:52]} 11. Bd3 {[%clk 0:01:59]}  h6 {[%clk 0:02:50]} 12. Bh4 {[%clk 0:01:56]}  Qa5 {[%clk 0:02:49]} 13. e5 {[%clk 0:01:38]}  Nd7 {[%clk 0:02:40]} 14. Bxe7 {[%clk 0:01:31]}  Kxe7 {[%clk 0:02:41]} 15. Kb1 {[%clk 0:01:18]}  Rb8 {[%clk 0:02:39]} 16. Rhe1 {[%clk 0:01:05]}  Qb4 {[%clk 0:02:36]} 17. b3 {[%clk 0:00:59]}  a5 {[%clk 0:02:34]} 18. f5 {[%clk 0:00:53]}  Nc5 {[%clk 0:02:22]} 19. f6+ {[%clk 0:00:51]}  gxf6 {[%clk 0:02:18]} 20. exf6+ {[%clk 0:00:52]}  Kf8 {[%clk 0:02:10]} 21. Rf1 {[%clk 0:00:38]}  a4 {[%clk 0:02:10]} 22. Rf4 {[%clk 0:00:38]}  Qa5 {[%clk 0:02:05]} 23. Nxa4 {[%clk 0:00:31]}  Qxd2 {[%clk 0:02:05]} 24. Rxd2 {[%clk 0:00:32]}  e5 {[%clk 0:02:06]} 25. Rh4 {[%clk 0:00:27]}  Nd7 {[%clk 0:02:07]} 26. Bf5 {[%clk 0:00:23]}  Nxf6 {[%clk 0:02:05]} 27. Bxc8 {[%clk 0:00:23]}  Rxc8 {[%clk 0:02:06]} 28. Nc5 {[%clk 0:00:24]}  Ke7 {[%clk 0:02:05]} 29. a4 {[%clk 0:00:22]}  Nd7 {[%clk 0:02:04]} 30. Nxd7 {[%clk 0:00:20]}  Kxd7 {[%clk 0:02:05]} 31. Rf2 {[%clk 0:00:20]}  Ke6 {[%clk 0:02:04]} 32. Rh5 {[%clk 0:00:21]}  f6 {[%clk 0:02:05]} 33. Rhf5 {[%clk 0:00:21]}  Rhf8 {[%clk 0:02:05]} 34. g4 {[%clk 0:00:20]}  Rf7 {[%clk 0:02:04]} 35. h3 {[%clk 0:00:20]}  Rg8 {[%clk 0:02:05]} 36. Kb2 {[%clk 0:00:20]}  Rg5 {[%clk 0:02:06]} 37. a5 {[%clk 0:00:20]}  Rxf5 {[%clk 0:02:05]} 38. gxf5+ {[%clk 0:00:18]}  Kd6 {[%clk 0:02:05]} 39. Rg2 {[%clk 0:00:18]}  e4 {[%clk 0:02:05]} 40. Kc3 {[%clk 0:00:17]}  Ke5 {[%clk 0:02:05]} 41. Rf2 {[%clk 0:00:18]}  c5 {[%clk 0:02:05]} 42. b4 {[%clk 0:00:15]}  d4+ {[%clk 0:02:06]} 43. Kc4 {[%clk 0:00:16]}  e3 {[%clk 0:02:06]} 44. Rf1 {[%clk 0:00:16]}  cxb4 {[%clk 0:02:07]} 45. Kxb4 {[%clk 0:00:16]}  Rc7 {[%clk 0:02:08]} 46. a6 {[%clk 0:00:15]}  Rxc2 {[%clk 0:02:08]} 47. Ra1 {[%clk 0:00:16]}  Rc8 {[%clk 0:02:09]} 48. a7 {[%clk 0:00:16]}  Ra8 {[%clk 0:02:09]} 49. Kc4 {[%clk 0:00:16]}  Ke4 {[%clk 0:02:09]} 50. Ra6 {[%clk 0:00:16]}  Kxf5 {[%clk 0:02:06]} 51. Kd3 {[%clk 0:00:16]}  e2 {[%clk 0:02:07]} 52. Kxe2 {[%clk 0:00:15]}  Ke4 {[%clk 0:02:06]} 53. Kd2 {[%clk 0:00:16]}  f5 {[%clk 0:02:05]} 54. Re6+ {[%clk 0:00:15]}  Kd5 {[%clk 0:02:05]} 55. Ra6 {[%clk 0:00:16]}  Ke4 {[%clk 0:02:04]} 56. Re6+ {[%clk 0:00:17]}  Kd5 {[%clk 0:01:58]} 57. Ra6 {[%clk 0:00:17]}  Kc4 {[%clk 0:01:59]} 58. Kc2 {[%clk 0:00:14]}  f4 {[%clk 0:01:59]} 59. Kd2 {[%clk 0:00:14]}  f3 {[%clk 0:01:59]} 60. Rxh6 {[%clk 0:00:14]}  Rxa7 {[%clk 0:01:59]} 61. Rc6+ {[%clk 0:00:11]}  Kd5 {[%clk 0:01:59]} 62. Rf6 {[%clk 0:00:12]}  Ra2+ {[%clk 0:02:00]} 63. Kd3 {[%clk 0:00:12]}  Ra3+ {[%clk 0:02:00]} 64. Kd2 {[%clk 0:00:12]}  Ke5 {[%clk 0:02:01]} 65. Rf8 {[%clk 0:00:12]}  Ke4 {[%clk 0:01:58]} 66. Re8+ {[%clk 0:00:09]}  Kf4 {[%clk 0:01:58]} 67. Rg8 {[%clk 0:00:08]}  Ra1 {[%clk 0:01:55]} 68. Rg4+ {[%clk 0:00:07]}  Kf5 {[%clk 0:01:54]} 69. Rxd4 {[%clk 0:00:06]}  f2 {[%clk 0:01:54]} 70. Rd8 {[%clk 0:00:03]}  f1=Q {[%clk 0:01:55]} 0-1


[Site "https://www.chess.com"]

[Event "Titled Tuesday Blitz November 01 Early 2022"]
[White "Ozen, Bahadir"]
[Black "Gurevich, Dmitry"]
[WhiteFideId "6337058"]
[BlackFideId "2000407"]
[WhiteElo "2503"]
[BlackElo "2506"]
[Result "0-1"]
[Round "02"]
[TimeControl "180+1"]
[Date "2022.11.02"]
[WhiteClock "0:00:32"]
[BlackClock "0:00:13"]

1. g3 {[%clk 0:03:00]}  d5 {[%clk 0:02:58]} 2. Bg2 {[%clk 0:03:00]}  c6 {[%clk 0:02:58]} 3. Nf3 {[%clk 0:03:01]}  Nf6 {[%clk 0:02:58]} 4. O-O {[%clk 0:03:01]}  Bf5 {[%clk 0:02:58]} 5. d3 {[%clk 0:03:01]}  h6 {[%clk 0:02:59]} 6. c4 {[%clk 0:02:57]}  dxc4 {[%clk 0:02:54]} 7. Ne5 {[%clk 0:02:54]}  e6 {[%clk 0:02:47]} 8. Nxc4 {[%clk 0:02:53]}  Be7 {[%clk 0:02:46]} 9. Qb3 {[%clk 0:02:42]}  Qd7 {[%clk 0:02:44]} 10. Bf4 {[%clk 0:02:38]}  Na6 {[%clk 0:02:42]} 11. Ne5 {[%clk 0:02:31]}  Qc8 {[%clk 0:02:41]} 12. e4 {[%clk 0:02:31]}  Bh7 {[%clk 0:02:40]} 13. Nc3 {[%clk 0:02:30]}  Nc5 {[%clk 0:02:37]} 14. Qc2 {[%clk 0:02:28]}  O-O {[%clk 0:02:35]} 15. Rad1 {[%clk 0:02:26]}  Nfd7 {[%clk 0:02:32]} 16. Nc4 {[%clk 0:02:24]}  Nb6 {[%clk 0:02:31]} 17. Na5 {[%clk 0:02:15]}  Ncd7 {[%clk 0:02:22]} 18. a3 {[%clk 0:02:05]}  Rd8 {[%clk 0:02:21]} 19. Rfe1 {[%clk 0:02:05]}  Bg5 {[%clk 0:02:11]} 20. Bxg5 {[%clk 0:02:01]}  hxg5 {[%clk 0:02:10]} 21. Qc1 {[%clk 0:02:02]}  g4 {[%clk 0:02:06]} 22. Qg5 {[%clk 0:01:59]}  Nf6 {[%clk 0:02:04]} 23. e5 {[%clk 0:01:50]}  Nfd5 {[%clk 0:02:03]} 24. Ne4 {[%clk 0:01:50]}  Bxe4 {[%clk 0:01:45]} 25. Bxe4 {[%clk 0:01:50]}  Qc7 {[%clk 0:01:38]} 26. Qxg4 {[%clk 0:01:49]}  Nd7 {[%clk 0:01:34]} 27. b4 {[%clk 0:01:33]}  Nxe5 {[%clk 0:01:30]} 28. Qg5 {[%clk 0:01:31]}  Nd7 {[%clk 0:01:24]} 29. Bg2 {[%clk 0:01:28]}  N7f6 {[%clk 0:01:23]} 30. Rc1 {[%clk 0:01:27]}  Qb6 {[%clk 0:01:20]} 31. Nc4 {[%clk 0:01:18]}  Qd4 {[%clk 0:01:19]} 32. Na5 {[%clk 0:01:16]}  Rab8 {[%clk 0:01:13]} 33. Qd2 {[%clk 0:01:14]}  Nb6 {[%clk 0:01:10]} 34. Red1 {[%clk 0:01:11]}  Rd7 {[%clk 0:01:07]} 35. Nb3 {[%clk 0:01:11]}  Qd6 {[%clk 0:01:05]} 36. Nc5 {[%clk 0:01:12]}  Rdd8 {[%clk 0:01:05]} 37. Qg5 {[%clk 0:01:09]}  Nbd7 {[%clk 0:01:03]} 38. Ne4 {[%clk 0:01:06]}  Qe5 {[%clk 0:01:03]} 39. Qe3 {[%clk 0:01:03]}  Nxe4 {[%clk 0:00:56]} 40. dxe4 {[%clk 0:01:03]}  Nb6 {[%clk 0:00:56]} 41. Rd2 {[%clk 0:00:55]}  Rxd2 {[%clk 0:00:53]} 42. Qxd2 {[%clk 0:00:56]}  Qf6 {[%clk 0:00:47]} 43. Rd1 {[%clk 0:00:49]}  g5 {[%clk 0:00:45]} 44. Qd4 {[%clk 0:00:46]}  Qxd4 {[%clk 0:00:44]} 45. Rxd4 {[%clk 0:00:47]}  Kf8 {[%clk 0:00:43]} 46. f4 {[%clk 0:00:47]}  gxf4 {[%clk 0:00:42]} 47. gxf4 {[%clk 0:00:48]}  Ke7 {[%clk 0:00:42]} 48. Kf2 {[%clk 0:00:48]}  Rh8 {[%clk 0:00:41]} 49. h3 {[%clk 0:00:48]}  Nd7 {[%clk 0:00:40]} 50. e5 {[%clk 0:00:47]}  Nb6 {[%clk 0:00:37]} 51. Rd3 {[%clk 0:00:46]}  Nd5 {[%clk 0:00:36]} 52. Bxd5 {[%clk 0:00:46]}  cxd5 {[%clk 0:00:33]} 53. Rc3 {[%clk 0:00:46]}  Kd7 {[%clk 0:00:33]} 54. b5 {[%clk 0:00:47]}  Rh4 {[%clk 0:00:28]} 55. Kg3 {[%clk 0:00:46]}  Rh8 {[%clk 0:00:28]} 56. h4 {[%clk 0:00:45]}  Rg8+ {[%clk 0:00:28]} 57. Kf2 {[%clk 0:00:45]}  Rg4 {[%clk 0:00:27]} 58. Rh3 {[%clk 0:00:37]}  Rxf4+ {[%clk 0:00:27]} 59. Kg3 {[%clk 0:00:37]}  Rc4 {[%clk 0:00:26]} 60. h5 {[%clk 0:00:38]}  Rc3+ {[%clk 0:00:22]} 61. Kg4 {[%clk 0:00:39]}  Rxh3 {[%clk 0:00:21]} 62. Kxh3 {[%clk 0:00:40]}  Ke7 {[%clk 0:00:21]} 63. Kg4 {[%clk 0:00:38]}  Kf8 {[%clk 0:00:21]} 64. Kg5 {[%clk 0:00:25]}  Kg7 {[%clk 0:00:21]} 65. a4 {[%clk 0:00:26]}  b6 {[%clk 0:00:18]} 66. Kg4 {[%clk 0:00:26]}  Kh6 {[%clk 0:00:17]} 67. Kh4 {[%clk 0:00:27]}  d4 {[%clk 0:00:17]} 68. Kg4 {[%clk 0:00:27]}  d3 {[%clk 0:00:17]} 69. Kf3 {[%clk 0:00:28]}  Kxh5 {[%clk 0:00:17]} 70. Ke3 {[%clk 0:00:29]}  Kg5 {[%clk 0:00:17]} 71. Kxd3 {[%clk 0:00:29]}  Kf5 {[%clk 0:00:18]} 72. Kd4 {[%clk 0:00:30]}  Kf4 {[%clk 0:00:18]} 73. a5 {[%clk 0:00:31]}  Kf5 {[%clk 0:00:15]} 74. axb6 {[%clk 0:00:32]}  axb6 {[%clk 0:00:13]} 0-1


[Site "https://www.chess.com"]